{"text_format":"1","workbook":"xlsx","n_sheets":1,"sheets":["Rekapitulace"],"not_rendered":{"charts":0,"images":0,"macros":1,"external_links":0,"defined_names":0,"comments":0,"pivot_tables":0},"unopened":[],"bounds":{"document_bytes":16777216,"sheet_cells":100000,"rows_first":2000,"rows_last":500,"rows_between":2000,"halvings":0,"cell_chars":16384,"cell_head_chars":4096},"cells_cut":0,"cells_raw":0,"read":"whole","date_system":"1900"}

{"sheet":"Rekapitulace","index":0,"n_rows":57,"n_cols":16,"rows_kept":57,"cut":false,"hidden":false,"merged":[[56,2,56,5],[45,4,45,9],[54,2,54,5],[55,2,55,5],[50,4,50,9],[1,1,1,15],[46,4,46,9],[47,4,47,9],[48,4,48,9],[49,4,49,9],[4,4,4,9],[4,10,4,15],[39,10,39,15],[40,4,40,9],[4,1,5,1],[4,2,5,2],[4,3,5,3],[3,5,3,8],[44,4,44,9]]}
[null,"Příloha č. 6"]
[null,"\"Dorozumívací zařízení pacient - sestra na gynekologicko-porodnickém oddělení SNO - II.\""]
[null,"Evidenční číslo: OPA/Hal/2023/26/dorozumívací zařízení-GYN-II."]
[null,"Systémové číslo: P23V00000190",null,null,null,"doplní dodavatel"]
[null,"Název","MJ","Množství","materiál",null,null,null,null,null,"monáž"]
[null,null,null,null,"cena/MJ bez DPH","DPH v %","DPH v Kč","cena/MJ vč. DPH","celkem/ materiál bez DPH","celkem/ materiál vč. DPH","cena/MJ bez DPH","DPH v %","DPH v Kč","cena/MJ vč. DPH","celkem/ materiál bez DPH","celkem/ materiál vč. DPH"]
[null,"Dodávka a montáž technologie "]
[1,"Hlavní terminál, vč. adaptéru a kabelu k terminálu 2m (Touch screen monitor min. 10,4\", hlasitá a diskrétní komunikace, identifikace volajícího včetně jména klienta, možnost zobrazení informací z EPS, poslech radiových stanic na hlavním terminálu, volba IP radiostanic přímo na hlavním terminálu v uživatelském menu. Možnost integrace s bezdrátovým systémem a zobrazení bezdrátových bezpečnostních tlačítek s funkcí hlídání průchodu klientů zakázanou zónou, ve spojení s IP kamerou zobrazení online přenosu od vchodu na oddělení)","ks",3,null,null,{"$f":"E8*F8","v":0},{"$f":"E8+G8","v":0},{"$f":"E8*D8","v":0},{"$f":"H8*D8","v":0},null,null,{"$f":"K8*L8","v":0},{"$f":"K8+M8","v":0},{"$f":"K8*D8","v":0},{"$f":"N8*D8","v":0}]
[null,"Zásuvka terminálu","ks",3,null,null,{"$f":"E9*F9","v":0},{"$f":"E9+G9","v":0},0,{"$f":"H9*D9","v":0},null,null,{"$f":"K9*L9","v":0},{"$f":"K9+M9","v":0},0,{"$f":"N9*D9","v":0}]
[5,"Datový rozvaděč nástěnný 19\"/12U - nástěnný\n600 x 635 x 395 mm, 19,5 kg","ks",2,null,null,0,0,0,0,null,null,0,0,0,0]
[11,"Napájecí zdroj + lokální server ","ks",2,null,null,0,0,0,0,null,null,0,0,0,0]
[12,"Rozvodný panel 8x 230V 19\"/2U","ks",2,null,null,0,0,0,0,null,null,0,0,0,0]
[null,"SW - licence pro Hlavní terminál","ks",3,null,null,0,0,0,0,null,null,0,0,0,0]
[15,"SW - licence provozu účastníka","ks",35,null,null,0,0,0,0,null,null,0,0,0,0]
[16,"SW - databáze historie volání","ks",3,null,null,0,0,0,0,null,null,0,0,0,0]
[17,"SW - aktivace sdruženého provozu","ks",3,null,null,0,0,0,0,null,null,0,0,0,0]
[18,"SW - prohlížeč historie","ks",3,null,null,0,0,0,0,null,null,0,0,0,0]
[25,"Univerzální police 19\"/1U","ks",2,null,null,0,0,0,0,null,null,0,0,0,0]
[34,"Datový switch 24 portů/19\" (CZ)","ks",4,null,null,0,0,0,0,null,null,0,0,0,0]
[38,"Napájecí injektor 24 portů/19\"","ks",4,null,null,0,0,0,0,null,null,0,0,0,0]
[49,"Svítidlo signalizační LED","ks",19,null,null,0,0,0,0,null,null,0,0,0,0]
[53,"Pokojový terminál hovorový\n(minimálně 4 programovatelná tlačítka, hovorové spojení s hlavním terminálem, příjem hovorového volání od lůžka klienta, hlasová navigace - informace o volajícím, číslo pokoje/lůžka, centrální hlášení přenos hlasové informace - nucený poslech)","ks",19,null,null,0,0,0,0,null,null,0,0,0,0]
[55,"Pokojový terminál hovorový s displejem\n(minimálně 4 programovatelná tlačítka, hovorové spojení s hlavním terminálem, příjem hovorového volání od lůžka klienta, displej s indentifikací místa volání, hlasová navigace - informace o volajícím, číslo pokoje/lůžka, centrální hlášení přenos hlasové informace - nucený poslech)","ks",2,null,null,0,0,0,0,null,null,0,0,0,0]
[70,"Zásuvka pacienta s držákem a reproduktorem\n(přenos hlasitého hovorového spojení sestra - klient, přenos hlasité reprodukce rádia a centrální hlašení vždy v případě, je - li koncový prvek zavěšen v držáku, či zavěšen na hrazdě postele klienta)","ks",35,null,null,0,0,0,0,null,null,0,0,0,0]
[80,"Terminál pacienta s tlačítkem volání druhé sestry (minimálně tlačítko primárního přivolání pomoci podsvícené pro lepší orientaci klientů v nočních hodinách, tlačítka pro přivolání odborného personálu z jiného odd., tlačítka pro volbu rádiové stanice, tlačítko pro ovládání hlasitosti + -, další tlačítko volně programovatelné, bezpečnostní konektor proti vytržení včetně vytrhávacího krouceného kabelu)  ","ks",35,null,null,0,0,0,0,null,null,0,0,0,0]
[null,"Táhlo nouzového volání","ks",19,null,null,0,0,0,0,null,null,0,0,0,0]
[null,"Táhlo a tlačítko nouzového volání","ks",19,null,null,0,0,0,0,null,null,0,0,0,0]
[119,"Router","ks",2,null,null,0,0,0,0,null,null,0,0,0,0]
[150,"Patch kabel","ks",65,null,null,0,0,0,0,null,null,0,0,0,0]
[null,"Konektor RJ45 UTP CAT5e včetně ochrany a proměření","ks",130,null,null,0,0,0,0,null,null,0,0,0,0]
[null,"Celkem",null,null,null,null,null,null,{"$f":"SUM(I8:I30)","v":0},{"$f":"SUM(J8:J30)","v":0},null,null,null,null,{"$f":"SUM(O8:O30)","v":0},{"$f":"SUM(P8:P30)","v":0}]
[]
[null,"Slaboproudé rozvody - dodávka a montáž vodičů"]
[null,"kabel do trubek, nebo do lišt LSOH","m",3100,null,null,{"$f":"E34*F34","v":0},{"$f":"E34+G34","v":0},{"$f":"E34*D34","v":0},{"$f":"H34*D34","v":0},null,null,{"$f":"K34*L34","v":0},{"$f":"M34+K34","v":0},{"$f":"K34*D34","v":0},{"$f":"N34*D34","v":0}]
[null,"vodič do trubek, nebo do lišt","m",20,null,null,{"$f":"E35*F35","v":0},{"$f":"E35+G35","v":0},{"$f":"E35*D35","v":0},{"$f":"H35*D35","v":0},null,null,{"$f":"K35*L35","v":0},{"$f":"M35+K35","v":0},{"$f":"K35*D35","v":0},{"$f":"N35*D35","v":0}]
[null,"vodič do trubek, nebo do lišt","m",60,null,null,0,0,{"$f":"E36*D36","v":0},0,null,null,0,0,{"$f":"K36*D36","v":0},0]
[null,"Celkem",null,null,null,null,null,null,{"$f":"SUM(I34:I36)","v":0},{"$f":"SUM(J34:J36)","v":0},null,null,null,null,{"$f":"SUM(O34:O36)","v":0},{"$f":"SUM(P34:P36)","v":0}]
[]
[null,"Hrubá instalace - trubkování (lištování) a osazení instalačních krabic"]
[null,"ostatní drobný instalační materiál (izolační pásky, stahovací plastové pásky, spojovací materiál, svorky, koncovky, štítky, uchycovací materiál, hmoždinky, vruty…)","kpl",2,null,null,{"$f":"F40*E40","v":0},{"$f":"G40+E40","v":0},{"$f":"E40*D40","v":0},{"$f":"H40*D40","v":0},"x"]
[null,"pomocné montážní, instalační a stavební práce (přesun hmot a materiálu, stěhování nábytku, propoj s tel. ústřednou, propoj s datovou sítí objektu, nepředvídatelné práce)","hod",20,"x",null,null,null,null,null,null,null,{"$f":"K41*L41","v":0},{"$f":"K41+M41","v":0},{"$f":"K41*D41","v":0},{"$f":"N41*D41","v":0}]
[null,"Celkem",null,null,null,null,null,null,{"$f":"I40","v":0},{"$f":"J40","v":0},null,null,null,null,{"$f":"O41","v":0},{"$f":"P41","v":0}]
[]
[null,"Ostatní náklady"]
[null,"Instalace a konfigurace systému",null,null,"X",null,null,null,null,null,null,null,{"$f":"K45*L45","v":0},{"$f":"K45+M45","v":0},{"$f":"K45*D45","v":0},{"$f":"N45*D45","v":0}]
[null,"Kontrolní provoz, zaškolení, vedlejší výdaje",null,null,"X",null,null,null,null,null,null,null,{"$f":"K46*L46","v":0},{"$f":"K46+M46","v":0},{"$f":"K46*D46","v":0},{"$f":"N46*D46","v":0}]
[null,"Ekologická likvidace odpadu",null,null,"X",null,null,null,null,null,null,null,0,0,0,0]
[null,"Koordinace stavby",null,null,"X",null,null,null,null,null,null,null,0,0,0,0]
[null,"Kontrolní dny",null,null,"X",null,null,null,null,null,null,null,0,0,0,0]
[null,"Úklid staveniště",null,null,"X",null,null,null,null,null,null,null,0,0,0,0]
[null,"Doprava",null,null,"X",null,null,null,null,null,null,null,0,0,0,0]
[null,"Celkem",null,null,null,null,null,null,null,null,null,null,null,null,{"$f":"SUM(O45:O51)","v":0},{"$f":"SUM(P45:P51)","v":0}]
[]
[]
[null,"CENA CELKEM BEZ DPH",{"$f":"O52+O42+O37+O31+I31+I37+I42","v":0}]
[null,"CENA CELKEM VČETNĚ DPH",{"$f":"P52+P42+P37+P31+J31+J37+J42","v":0}]
[null,"DPH",{"$f":"C56-C55","v":0}]